bitfinex-derivatives/quotes_SOLF0:USTF0_20250130
["timestamp","ask_amount","ask_price","bid_price","bid_amount"]
[1738253530869,0.02879014,241.39,241.34,0.02958841]
[1738253530870,3.62520183,241.38,241.34,0.02958841]
[1738253531274,0.02879014,241.39,241.34,0.02958841]
[1738253531977,4.17129014,241.39,241.35,4.1429]
[1738253532477,0.02879014,241.39,241.35,4.1429]
[1738253532668,4.1426,241.38,241.35,4.1429]
[1738253533475,0.02879014,241.39,241.34,0.02958841]
[1738253534080,4.1431,241.35,241.34,0.02958841]
[1738253534279,3.62418452,241.38,241.34,0.02958841]
[1738253534575,3.62418452,241.37,241.34,0.02958841]
[1738253534880,4.1429,241.36,241.34,0.02958841]
[1738253535380,4.1431,241.35,241.34,0.02958841]
[1738253536074,4.1441,241.3,241.21,1.3403]
[1738253536272,3.62727251,241.38,241.21,1.3403]
[1738253536472,3.62727251,241.37,241.27,4.1444]
[1738253536680,4.1437,241.32,241.27,4.1444]
[1738253536976,3.62727251,241.37,241.25,4.1447]
[1738253537177,4.1441,241.29,241.25,4.1447]
[1738253537574,4.17193509,241.32,241.28,4.1442]
[1738253537779,0.02833509,241.32,241.27,17.7677084]
[1738253537978,1.4419,241.44,241.31,17.7677084]
[1738253538276,5.69766169,241.47,241.35,17.7677084]
[1738253538475,3.62862275,241.46,241.35,17.7677084]
[1738253538881,3.62862275,241.46,241.36,1.3811]
[1738253539083,0.0291561,241.43,241.38,0.02833509]
[1738253539376,0.0291561,241.43,241.42,4.1419]
[1738253542284,0.0291561,241.43,241.38,0.02833509]
[1738253542484,4.1419,241.42,241.38,0.02833509]
[1738253543085,0.0291561,241.43,241.38,0.02833509]
[1738253543285,4.1421,241.41,241.38,0.02833509]
[1738253543786,0.0291561,241.43,241.38,0.02833509]
[1738253543988,5.69766169,241.57,241.38,0.02833509]
[1738253544183,3.62706996,241.53,241.33,0.75176063]
[1738253544488,3.62706996,241.53,241.35,17.7677084]
[1738253544982,3.62706996,241.52,241.42,4.1419]
[1738253545195,0.02866395,241.46,241.42,0.0276399]
[1738253546090,0.02866395,241.46,241.42,4.1693399]
[1738253546385,0.02866395,241.46,241.42,0.0276399]
[1738253546980,4.1417,241.43,241.42,0.0276399]
[1738253547185,7.77032357,241.43,241.42,0.0276399]
[1738253547993,3.62862357,241.43,241.42,0.0276399]
[1738253548387,0.02866395,241.46,241.42,4.1695399]
[1738253548589,4.16996395,241.46,241.42,0.0276399]
[1738253549089,3.62955051,241.45,241.42,0.0276399]
[1738253549291,4.1417,241.43,241.42,0.0276399]
[1738253549687,7.77125051,241.43,241.42,0.0276399]
[1738253550594,4.142,241.42,241.31,17.7677084]
[1738253550987,17.7677084,241.52,241.31,17.7677084]
[1738253551491,4.1417,241.44,241.38,4.1426]
[1738253551692,4.17115297,241.44,241.39,0.02985129]
[1738253551893,3.6326573,241.43,241.39,0.02985129]
[1738253552392,4.17115297,241.44,241.39,0.02985129]
[1738253553392,4.1417,241.43,241.39,0.02985129]
[1738253553893,3.6342921,241.42,241.39,0.02985129]
[1738253554194,4.1421,241.41,241.39,0.02985129]
[1738253554493,3.6342921,241.42,241.39,0.02985129]
[1738253554694,7.7763921,241.41,241.39,0.02985129]
[1738253555094,4.1421,241.41,241.39,0.02985129]
[1738253556194,4.1422,241.4,241.39,0.02985129]
[1738253556896,4.1428,241.37,241.32,4.1436]
[1738253557095,2.8839,241.43,241.32,4.1436]
[1738253557391,4.144,241.3,241.26,4.1446]
[1738253557694,17.7677084,241.36,241.26,4.1446]
[1738253557889,4.1431,241.36,241.31,4.1436]
[1738253558092,4.1431,241.36,241.18,2.7812]
[1738253558093,0.02804266,241.33,241.27,17.7677084]
[1738253558400,0.02804266,241.33,241.31,17.7677084]
[1738253558587,11.1141985,241.5,241.39,4.1423]
[1738253558792,12.4826985,241.5,241.39,4.1423]
[1738253558992,3.63541616,241.42,241.37,4.1427]
[1738253559492,3.63541616,241.41,241.38,4.1425]
[1738253560292,3.63541616,241.4,241.38,4.1425]
[1738253560596,3.63541616,241.4,241.37,0.02789973]
[1738253560790,4.16983456,241.42,241.37,0.02789973]
[1738253561098,4.1421,241.41,241.37,0.02789973]
[1738253561393,0.02783456,241.42,241.37,0.02789973]
[1738253561697,4.1424,241.39,241.37,0.02789973]
[1738253562098,0.02783456,241.42,241.37,0.02789973]
[1738253562298,4.1421,241.41,241.37,0.02789973]
[1738253562499,3.63668051,241.4,241.37,0.02789973]
[1738253563195,3.63668051,241.4,241.37,4.17059973]
[1738253563396,0.02783456,241.42,241.37,4.17059973]
[1738253564300,3.63692477,241.41,241.37,4.17059973]
[1738253564496,0.02783456,241.42,241.37,4.17059973]
[1738253565101,4.16973456,241.42,241.37,4.17059973]
[1738253565798,4.1421,241.41,241.37,0.02789973]
[1738253566199,0.02783456,241.42,241.37,0.02789973]
[1738253566401,4.1426,241.38,241.37,0.02789973]
[1738253567499,4.1439,241.31,241.25,5.545]
[1738253567903,21.42358414,241.38,241.2,17.78592187]
[1738253568095,4.1444,241.28,241.22,4.1452]
[1738253568703,4.1447,241.26,241.19,1.4004]
[1738253568905,17.78592187,241.34,241.19,1.4004]
[1738253569200,0.02762835,241.25,241.19,1.4004]
[1738253569808,0.02762835,241.25,241.21,4.1453]
[1738253570004,0.02762835,241.25,241.19,1.4004]
[1738253570607,0.02762835,241.25,241.17,9.75729]
[1738253571200,0.02762835,241.25,241.24,4.145]
[1738253571802,0.02762835,241.25,241.21,4.1454]
[1738253572008,0.02762835,241.25,241.17,9.75729]
[1738253572206,0.02762835,241.25,241.17,27.54321187]
[1738253572599,0.02762835,241.25,241.24,4.145]
[1738253572804,0.02762835,241.25,241.17,27.54321187]
[1738253574307,1.3211,241.4,241.21,17.78592187]
[1738253574509,22.89286117,241.42,241.27,17.78592187]
[1738253575003,3.63049002,241.41,241.27,17.78592187]
[1738253575401,0.02952909,241.36,241.32,0.02745399]
[1738253576011,0.02952909,241.36,241.34,4.1432]
[1738253577109,0.02952909,241.36,241.32,0.02745399]
[1738253578309,4.17242909,241.36,241.32,0.02745399]
[1738253578705,0.02952909,241.36,241.32,0.02745399]
[1738253579504,4.1431,241.35,241.32,0.02745399]
[1738253579903,0.02952909,241.36,241.32,0.02745399]
[1738253580109,4.1433,241.34,241.32,0.02745399]
[1738253580610,4.1434,241.33,241.32,0.02745399]
[1738253582606,4.1438,241.31,241.26,4.1446]
[1738253583012,1.3901,241.35,241.26,4.1446]
[1738253583318,4.144,241.3,241.18,3.5126]
[1738253583519,3.63185305,241.34,241.18,3.5126]
[1738253583707,0.02892344,241.26,241.18,3.5126]
[1738253583911,0.02892344,241.26,241.25,4.1448]
[1738253584616,3.63185305,241.33,241.3,4.1438]
[1738253585017,4.1431,241.35,241.3,4.1438]
[1738253585212,1.3465,241.41,241.3,4.1438]
[1738253585407,4.1433,241.34,241.3,4.1438]
[1738253585816,4.16969324,241.34,241.3,4.17252884]
[1738253586720,4.1438,241.31,241.3,0.02872884]
[1738253586920,11.12471641,241.32,241.13,12.45751641]
[1738253587115,11.12471641,241.27,241.13,12.45751641]
[1738253587311,11.12471641,241.27,241.13,1.3328]
[1738253587515,11.12471641,241.27,241.1,11.12471641]
[1738253587721,3.63266174,241.26,241.1,11.12471641]
[1738253588019,0.02756799,241.24,241.1,11.12471641]
[1738253588720,4.1455,241.21,241.1,11.12471641]
[1738253588920,0.02756799,241.24,241.1,11.12471641]
[1738253589320,4.1455,241.21,241.16,4.1463]
[1738253589921,4.1453,241.23,241.17,13.90349]
[1738253590217,11.1522844,241.24,241.17,9.75729]
[1738253590419,4.1455,241.22,241.17,9.75729]
[1738253591319,4.1455,241.22,241.07,19.26123482]
[1738253591821,0.02791272,241.17,241.07,19.26123482]
[1738253592021,0.02791272,241.17,241.15,4.1465]
[1738253592924,0.02791272,241.17,241.07,19.26123482]
[1738253593123,0.02791272,241.17,241.16,4.1463]
[1738253596522,0.02791272,241.17,241.14,4.1466]
[1738253597524,0.02791272,241.17,241.07,19.26123482]
[1738253597927,0.02791272,241.17,241.07,1.4409]
[1738253598322,4.1465,241.16,241.07,1.4409]
[1738253598524,0.02791272,241.17,241.07,1.4409]
[1738253598722,0.02791272,241.17,241.05,1.4409]
[1738253599027,4.17421272,241.17,241.12,4.147]
[1738253599423,0.02791272,241.17,241.12,4.147]
[1738253599724,4.1464,241.16,241.12,4.147]
[1738253600827,4.1464,241.16,241.13,4.1469]
[1738253602831,0.02791272,241.17,241.16,4.1464]
[1738253603721,0.02791272,241.17,241.11,17.82033482]
[1738253604528,0.02791272,241.17,241.16,4.1464]
[1738253607226,0.02791272,241.17,241.15,4.1465]
[1738253607433,4.1464,241.16,241.07,17.82033482]
[1738253608028,4.1468,241.14,241.1,4.1474]
[1738253608232,0.02791272,241.17,241.07,17.82033482]
[1738253608829,4.1465,241.15,241.12,4.147]
[1738253609333,4.1465,241.15,241.11,4.1472]
[1738253609532,4.1471,241.12,241.05,1.4409]
[1738253610022,0.03063937,241.11,241.08,4.1477]
[1738253611134,0.03063937,241.11,241.09,4.1476]
[1738253611329,0.03063937,241.11,241.05,11.14225861]
[1738253611934,0.03063937,241.11,241.1,4.1474]
[1738253612632,3.62053165,241.19,241.18,4.146]
[1738253612828,3.62053165,241.19,241.12,11.14225861]
[1738253613237,3.62053165,241.25,241.12,11.14225861]
[1738253613637,4.1454,241.22,241.12,11.14225861]
[1738253613830,0.03087664,241.21,241.16,0.03050273]
[1738253614229,0.03087664,241.21,241.19,4.1458]
[1738253614837,0.03087664,241.21,241.2,4.1457]
[1738253615238,45.58129357,241.33,241.18,11.14225861]
[1738253615439,45.58129357,241.33,241.27,4.1443]
[1738253615631,45.58129357,241.33,241.22,11.14225861]
[1738253615832,27.03676117,241.31,241.26,4.1446]
[1738253616030,17.19519948,241.31,241.22,11.14225861]
[1738253616239,15.35535861,241.35,241.22,11.14225861]
[1738253616436,0.02623323,241.29,241.26,4.1446]
[1738253616742,0.02623323,241.29,241.24,0.03077811]
[1738253617037,4.1445,241.27,241.24,0.03077811]
[1738253617235,11.16849184,241.29,241.24,0.03077811]
[1738253617647,4.1448,241.25,241.24,0.03077811]
[1738253618737,11.14225861,241.26,241.12,4.147]
[1738253619046,4.146,241.18,241.1,11.14225861]
[1738253619539,4.1466,241.15,241.07,11.14225861]
[1738253619847,0.02634238,241.16,241.12,0.02968949]
[1738253621243,4.1466,241.15,241.12,0.02968949]
[1738253621443,0.02634238,241.16,241.12,0.02968949]
[1738253622041,0.02634238,241.16,241.13,11.14225861]
[1738253622346,0.02634238,241.16,241.15,4.1465]
[1738253623242,0.02634238,241.16,241.14,4.1467]
[1738253624549,0.02634238,241.16,241.15,4.1465]
[1738253627253,1.3887,241.32,241.21,11.14225861]
[1738253627448,1.3887,241.32,241.24,11.14225861]
[1738253627948,3.62392416,241.31,241.24,11.14225861]
[1738253628151,0.03041874,241.3,241.26,0.03007068]
[1738253628855,0.03041874,241.3,241.29,4.1441]
[1738253629046,5.69766169,241.35,241.27,11.14225861]
[1738253629255,5.69766169,241.35,241.3,11.14225861]
[1738253629552,16.8399203,241.44,241.27,12.51065861]
[1738253629854,11.14225861,241.41,241.27,12.51065861]
[1738253630152,4.1429,241.36,241.32,0.02777197]
[1738253630347,4.17181031,241.36,241.32,0.02777197]
[1738253631745,0.02891031,241.36,241.32,0.02777197]
[1738253631944,0.02891031,241.36,241.34,4.1433]
[1738253632154,0.02891031,241.36,241.32,0.02777197]
[1738253632647,0.02891031,241.36,241.33,4.1434]
[1738253633248,0.02891031,241.36,241.32,0.02777197]
[1738253633553,0.02891031,241.36,241.27,12.51065861]
[1738253633856,4.1437,241.32,241.27,4.1443]
[1738253634051,0.02891031,241.36,241.27,4.1443]
[1738253634355,4.1437,241.32,241.24,4.145]
[1738253634544,11.14225861,241.35,241.29,0.02746856]
[1738253634745,0.03170826,241.3,241.21,11.14225861]
[1738253635151,0.03170826,241.3,241.23,0.02748213]
[1738253636058,4.17570826,241.3,241.24,4.145]
[1738253636758,4.17570826,241.3,241.25,4.1446]
[1738253636951,0.03170826,241.3,241.23,0.02748213]
[1738253637757,0.03170826,241.3,241.24,11.14225861]
[1738253638052,0.03170826,241.3,241.27,11.14225861]
[1738253638254,0.03170826,241.3,241.29,4.1441]
[1738253638657,4.1425,241.39,241.27,11.14225861]
[1738253638859,4.1425,241.39,241.3,11.14225861]
[1738253639161,2.8604,241.43,241.3,11.14225861]
[1738253639660,3.62192238,241.42,241.3,11.14225861]
[1738253639861,0.02890135,241.39,241.34,0.02645586]
[1738253640662,0.02890135,241.39,241.34,4.16965586]
[1738253641459,4.1426,241.38,241.34,0.02645586]
[1738253642561,0.02890135,241.39,241.37,4.1427]
[1738253643268,0.02890135,241.39,241.36,4.1429]
[1738253643761,0.02890135,241.39,241.34,0.02645586]
[1738253643965,0.02890135,241.39,241.38,4.1426]
[1738253645468,1.4398,241.5,241.45,4.1413]
[1738253645967,4.1409,241.48,241.38,11.14225861]
[1738253646564,4.1409,241.48,241.41,0.02917869]
[1738253646764,0.03008931,241.45,241.41,0.02917869]
[1738253647064,0.03008931,241.45,241.43,4.1416]
[1738253647857,0.03008931,241.45,241.41,0.02917869]
[1738253648965,11.14225861,241.44,241.41,0.02917869]
[1738253649367,0.03008931,241.45,241.41,0.02917869]
[1738253649368,4.1419,241.42,241.41,0.02917869]
[1738253649568,0.03008931,241.45,241.41,0.02917869]
[1738253650468,0.03008931,241.45,241.41,4.17117869]
[1738253651170,4.1416,241.44,241.41,0.02917869]
[1738253651969,0.03008931,241.45,241.41,0.02917869]
[1738253652470,11.14225861,241.59,241.44,11.14225861]
[1738253652774,11.14225861,241.62,241.47,11.14225861]
[1738253652970,4.1393,241.57,241.51,4.1402]
[1738253653264,3.60452181,241.61,241.51,4.1402]
[1738253653469,4.139,241.59,241.53,4.1398]
[1738253653670,0.02997758,241.58,241.54,0.02814649]
[1738253654172,4.16917758,241.58,241.54,0.02814649]
[1738253654469,0.02997758,241.58,241.54,0.02814649]
[1738253654871,0.02997758,241.58,241.47,1.45018937]
[1738253656072,0.02997758,241.58,241.5,0.0283519]
[1738253656673,4.16927758,241.58,241.53,4.1398]
[1738253657173,0.02997758,241.58,241.5,0.0283519]
[1738253658373,0.02997758,241.58,241.5,11.17061051]
[1738253658775,0.02997758,241.58,241.5,0.0283519]
[1738253659278,4.1399,241.54,241.5,0.0283519]
[1738253659572,0.02997758,241.58,241.5,0.0283519]
[1738253659771,4.14,241.53,241.5,0.0283519]
[1738253659974,0.02997758,241.58,241.5,0.0283519]
[1738253660375,4.1403,241.51,241.5,0.0283519]
[1738253661176,0.02937046,241.53,241.41,11.14225861]
[1738253661374,4.1411,241.47,241.41,11.14225861]
[1738253661576,2.8448,241.55,241.43,4.1417]
[1738253662479,0.03035225,241.51,241.47,0.02724551]
[1738253662677,4.1408,241.49,241.47,0.02724551]
[1738253664076,0.03035225,241.51,241.47,0.02724551]
[1738253664677,4.1414,241.45,241.35,12.46405861]
[1738253664881,11.14225861,241.53,241.35,12.46405861]
[1738253665070,11.14225861,241.53,241.38,11.14225861]
[1738253665275,4.141,241.48,241.38,11.14225861]
[1738253665470,11.14225861,241.53,241.4,4.1421]
[1738253665984,0.02642147,241.49,241.44,0.03114556]
[1738253666276,4.1414,241.45,241.36,4.1429]
[1738253666576,11.14225861,241.47,241.34,4.1432]
[1738253666780,1.3823,241.44,241.29,12.51655861]
[1738253667082,4.1429,241.37,241.29,12.51655861]
[1738253667381,4.1423,241.4,241.31,4.1436]
[1738253667683,0.02641687,241.35,241.31,0.03092455]
[1738253667881,11.16867548,241.35,241.31,0.03092455]
[1738253668075,4.1436,241.32,241.31,0.03092455]
[1738253669578,4.1441,241.29,241.2,11.14225861]
[1738253669982,3.60634007,241.34,241.2,11.14225861]
[1738253670183,3.60634007,241.34,241.14,1.3508]
[1738253670184,11.14225861,241.31,241.14,12.49305861]
[1738253670384,1.3278,241.3,241.14,12.49305861]
[1738253670684,0.02823494,241.24,241.11,11.14225861]
[1738253671078,4.1459,241.19,241.11,11.14225861]
[1738253671279,11.14225861,241.21,241.05,11.14225861]
[1738253671484,1.3328,241.2,241.05,11.14225861]
[1738253671684,0.0261865,241.16,241.1,4.1473]
[1738253671886,0.0261865,241.16,241.05,11.14225861]
[1738253672087,0.0261865,241.16,241.09,11.14225861]
[1738253672584,0.0261865,241.16,241.14,4.1466]
[1738253675487,0.0261865,241.16,241.12,1.40780934]
[1738253675794,0.0261865,241.16,241.13,11.14225861]
[1738253675992,0.0261865,241.16,241.1,11.14225861]
[1738253677096,0.0261865,241.16,241.14,4.1467]
[1738253677298,0.0261865,241.16,241.07,11.14225861]
[1738253677796,0.0261865,241.16,241.1,4.1473]
[1738253678100,0.0261865,241.16,241.07,11.14225861]
[1738253678298,0.0261865,241.16,241.11,4.1471]
[1738253678497,0.0261865,241.16,241.07,11.14225861]
[1738253678691,11.14225861,241.15,241.06,4.1481]
[1738253678895,11.14225861,241.15,241.01,11.14225861]
[1738253679297,4.17733218,241.13,241.07,4.1479]
[1738253679602,4.17733218,241.13,241.01,11.14225861]
[1738253679792,0.03043218,241.13,241.1,4.1472]
[1738253680099,0.03043218,241.13,241.04,11.14225861]
[1738253681099,0.03043218,241.13,241.06,4.1479]
[1738253681299,0.03043218,241.13,241.04,11.14225861]
[1738253681801,0.03043218,241.13,241.09,4.1475]
[1738253682302,0.03043218,241.13,241.01,11.14225861]
[1738253682497,4.17733218,241.13,241.01,11.14225861]
[1738253683001,0.03043218,241.13,241.01,11.14225861]
[1738253683302,4.17743218,241.13,241.08,4.1477]
[1738253684301,0.03043218,241.13,241.01,11.14225861]
[1738253684506,0.03043218,241.13,241.09,4.1475]
[1738253685005,0.03043218,241.13,241.01,11.14225861]
[1738253685206,4.17733218,241.13,241.08,4.1477]
[1738253685404,0.03043218,241.13,241.01,11.14225861]
[1738253685608,0.03043218,241.13,241.09,4.1474]
[1738253687400,0.03043218,241.13,241.12,4.147]
[1738253687805,0.03043218,241.13,241.04,11.14225861]
[1738253690210,0.03043218,241.13,241.09,4.1475]
[1738253690903,4.17743218,241.13,241.07,4.1477]
[1738253691211,4.17743218,241.13,241.04,11.14225861]
[1738253691404,4.17743218,241.13,241.01,11.14225861]
[1738253691601,4.17743218,241.13,241.04,4.1483]
[1738253691806,4.17743218,241.13,241.01,11.14225861]
[1738253692005,0.03043218,241.13,241.01,11.14225861]
[1738253692203,4.147,241.12,241.08,4.1476]
[1738253694414,4.17733218,241.13,241.08,4.1476]
[1738253694614,4.17733218,241.13,241.09,4.1475]
[1738253695809,4.17733218,241.13,241.01,11.14225861]
[1738253696012,0.03043218,241.13,240.99,1.4286]
[1738253696214,11.14225861,241.09,240.99,1.4286]
[1738253696411,4.148,241.07,241.02,4.1487]
[1738253696812,4.17677592,241.07,241.02,4.1487]
[1738253697214,4.1484,241.05,240.96,4.1497]
[1738253697408,4.1484,241.05,240.92,12.56515861]
[1738253697607,0.02748361,241.03,240.92,12.56515861]
[1738253698514,0.02748361,241.03,241.01,4.1489]
[1738253699913,0.02748361,241.03,241.02,4.1487]
[1738253700317,1.3542,241.16,241.01,11.14225861]
[1738253700511,1.3542,241.16,240.96,11.14225861]
[1738253700512,4.147,241.13,241.07,4.1478]
[1738253700712,4.147,241.13,241.04,11.14225861]
[1738253700912,1.3542,241.16,241.04,11.14225861]
[1738253701113,4.1472,241.12,241.08,4.1477]
[1738253701311,1.3542,241.16,241.04,11.14225861]
[1738253701612,0.02925797,241.12,241.08,0.02646701]
[1738253702615,0.02925797,241.12,241.08,4.17406701]
[1738253702816,0.02925797,241.12,241.08,0.02646701]
[1738253703209,4.1475,241.09,241.08,0.02646701]
[1738253703412,0.02925797,241.12,241.08,0.02646701]
[1738253705220,0.02925797,241.12,241.11,4.1472]
[1738253705919,0.02925797,241.12,241.08,0.02646701]
[1738253706420,4.17625797,241.12,241.08,4.17416701]
[1738253706816,0.02925797,241.12,241.08,4.17416701]
[1738253707118,0.02925797,241.12,241.09,4.1475]
[1738253707916,0.02925797,241.12,241.08,0.02646701]
[1738253708220,0.02925797,241.12,241.08,4.17416701]
[1738253709014,0.02925797,241.12,241.11,4.1472]
[1738253709420,3.60673858,241.16,241.1,11.14225861]
[1738253709620,4.1456,241.21,241.16,4.1462]
[1738253709823,16.8399203,241.24,241.1,11.14225861]
[1738253710520,4.1456,241.21,241.1,11.14225861]
[1738253710723,0.02699959,241.19,241.15,0.03059714]
[1738253711216,0.02699959,241.19,241.15,4.17689714]
[1738253711518,0.02699959,241.19,241.15,0.03059714]
[1738253711920,4.1444,241.28,241.16,11.14225861]
[1738253712117,3.62636597,241.28,241.16,11.14225861]
[1738253712521,11.14225861,241.27,241.14,2.8961]
[1738253713022,0.03098885,241.23,241.18,0.02961714]
[1738253713416,3.62636597,241.22,241.18,0.02961714]
[1738253713824,0.03098885,241.23,241.21,4.1455]
[1738253714022,0.03098885,241.23,241.18,0.02961714]
[1738253714725,3.63270941,241.22,241.18,0.02961714]
[1738253715021,0.03098885,241.23,241.18,0.02961714]
[1738253716328,0.03098885,241.23,241.22,4.1453]
[1738253717225,0.03098885,241.23,241.18,0.02961714]
[1738253717725,0.03098885,241.23,241.22,4.1453]
[1738253717925,0.03098885,241.23,241.2,11.14225861]
[1738253717926,3.63088217,241.31,241.2,11.14225861]
[1738253718127,3.63088217,241.31,241.23,11.14225861]
[1738253718321,3.63088217,241.31,241.23,5.27330366]
[1738253718826,82.08,241.37,241.23,5.27330366]
[1738253719027,0.02786653,241.32,241.28,0.02946579]
[1738253719322,0.02786653,241.32,241.29,11.14225861]
[1738253719826,0.02786653,241.32,241.31,4.1438]
[1738253720224,3.63156957,241.41,241.29,11.14225861]
[1738253720426,3.63156957,241.41,241.35,11.14225861]
[1738253720629,0.09606957,241.41,241.38,11.14225861]
[1738253720931,5.69766169,241.47,241.45,4.1414]
[1738253723425,0.02745458,241.48,241.47,4.141]
[1738253723631,0.02745458,241.48,241.44,0.03070594]
[1738253724130,0.02745458,241.48,241.45,4.1413]
[1738253725230,0.02745458,241.48,241.46,4.1411]
[1738253727527,17.76875635,241.8,241.49,4.1405]
[1738253727528,1.4107,241.61,241.49,4.1405]
[1738253727726,1.4107,241.61,241.45,17.76875635]
[1738253728236,1.4107,241.61,241.53,4.1398]
[1738253728735,4.1392,241.58,241.55,0.0263706]
[1738253729438,0.02831523,241.59,241.55,0.0263706]
[1738253730228,4.1395,241.56,241.55,0.0263706]
[1738253733032,0.02831523,241.59,241.45,17.76875635]
[1738253733234,0.02831523,241.59,241.41,17.76875635]
[1738253733432,17.76875635,241.6,241.37,17.76875635]
[1738253733634,4.141,241.48,241.37,17.76875635]
[1738253733837,17.76875635,241.6,241.37,17.76875635]
[1738253734038,17.76875635,241.52,241.34,1.4073]
[1738253734236,1.42257273,241.51,241.46,0.02838816]
[1738253734437,1.3914,241.51,241.34,1.4073]
[1738253734738,1.3769,241.5,241.46,0.03130243]
[1738253734939,1.3769,241.5,241.36,17.76875635]
[1738253735134,1.40520691,241.5,241.46,0.03131587]
[1738253735331,1.40520691,241.5,241.45,4.1413]
[1738253735638,1.40520691,241.5,241.46,0.02692221]
[1738253736036,1.40520691,241.5,241.36,17.76875635]
[1738253736638,1.40520691,241.5,241.41,0.02627065]
[1738253738132,4.1419,241.42,241.41,0.02627065]
[1738253739041,0.02640687,241.44,241.41,0.02627065]
[1738253739435,0.02640687,241.44,241.43,4.1417]
[1738253739942,0.02640687,241.44,241.43,4.10555666]
[1738253742236,1.3906,241.58,241.41,0.02627065]
[1738253742434,1.3906,241.58,241.45,17.76875635]
[1738253742734,4.1399,241.54,241.45,17.76875635]
[1738253743041,4.1399,241.54,241.46,11.10424051]
[1738253743235,1.3906,241.58,241.52,4.1401]
[1738253743435,0.03107949,241.52,241.48,0.02812062]
[1738253743745,0.03083472,241.52,241.49,4.1406]
[1738253743943,0.03083472,241.52,241.48,0.02812062]
[1738253745040,0.03083472,241.52,241.51,4.1403]
[1738253747047,0.03083472,241.52,241.48,0.02812062]
[1738253748039,4.17103472,241.52,241.48,4.16882062]
[1738253748243,0.03083472,241.52,241.48,0.02812062]
[1738253748747,0.03083472,241.52,241.4,4.142]
[1738253748941,0.03083472,241.52,241.34,1.3719]
[1738253749143,17.76644278,241.56,241.37,17.76644278]
[1738253749947,0.03092342,241.49,241.44,0.02975614]
[1738253751644,0.03092342,241.49,241.48,4.1408]
[1738253752244,0.03092342,241.49,241.44,0.02975614]
[1738253752446,0.03092342,241.49,241.46,4.141]
[1738253752645,0.03092342,241.49,241.44,0.02975614]
[1738253753545,0.03092342,241.49,241.46,4.1411]
[1738253753746,0.03092342,241.49,241.44,0.02975614]
[1738253754244,0.03092342,241.49,241.47,4.1408]
[1738253755044,0.03092342,241.49,241.44,0.02975614]
[1738253756245,0.03092342,241.49,241.48,4.1408]
[1738253758744,0.03092342,241.49,241.47,4.141]
[1738253759647,0.03092342,241.49,241.44,0.02975614]
[1738253759845,0.03092342,241.49,241.48,4.1408]
[1738253761041,0.03092342,241.49,241.45,16.16867632]
[1738253762253,0.03092342,241.49,241.48,4.1408]
[1738253766350,0.03092342,241.49,241.44,0.02975614]
[1738253767557,0.03092342,241.49,241.48,4.1408]
[1738253770460,1.3906,241.58,241.56,4.1393]
[1738253770759,4.1386,241.61,241.5,11.10380135]
[1738253771558,0.02816545,241.58,241.53,0.03061255]
[1738253772660,4.1395,241.57,241.53,0.03061255]
[1738253773060,0.02816545,241.58,241.53,0.03061255]
[1738253773255,4.1398,241.55,241.53,0.03061255]
[1738253773461,0.02816545,241.58,241.53,0.03061255]
[1738253774060,11.1319668,241.58,241.46,4.141]
[1738253774268,1.4511,241.57,241.47,11.10380135]
[1738253774762,1.4511,241.57,241.5,4.1405]
[1738253774963,1.4511,241.57,241.43,11.10380135]
[1738253775157,1.4511,241.57,241.48,0.02803781]
[1738253775363,4.1404,241.51,241.48,0.02803781]
[1738253775565,0.03118741,241.52,241.48,0.02803781]
[1738253775766,4.1406,241.5,241.48,0.02803781]
[1738253775966,0.03118741,241.52,241.48,0.02803781]
[1738253776361,4.1406,241.5,241.48,0.02803781]
[1738253776865,0.03118741,241.52,241.48,0.02803781]
[1738253777062,4.1403,241.51,241.48,0.02803781]
[1738253777267,0.03118741,241.52,241.48,0.02803781]
[1738253777466,4.17138741,241.52,241.48,4.16883781]
[1738253777863,0.03118741,241.52,241.48,0.02803781]
[1738253778064,0.03118741,241.52,241.5,4.1403]
[1738253778670,0.03118741,241.52,241.48,0.02803781]
[1738253780166,4.1404,241.51,241.48,4.16873781]
[1738253780367,0.03118741,241.52,241.48,0.02803781]
[1738253780770,4.1406,241.5,241.48,0.02803781]
[1738253780962,0.03118741,241.52,241.48,0.02803781]
[1738253781469,4.1404,241.51,241.48,4.16883781]
[1738253782274,4.1404,241.51,241.48,0.02803781]
[1738253782565,0.03118741,241.52,241.48,0.02803781]
[1738253782871,4.1407,241.49,241.48,0.02803781]
[1738253783068,1.4569,241.51,241.42,4.1418]
[1738253783269,4.1416,241.44,241.37,11.10380135]
[1738253783474,1.4569,241.51,241.37,11.10380135]
[1738253783668,1.4569,241.51,241.39,4.1422]